Cogmind - Beta 16.1 @@@ ROGUE MODE // 2026.02.12 @ 13:47:54 Player: alice_fexa Result: Destroyed by MZ-2X3(R) with Subdweller Laser Performance ------------- Evolutions (0) 0 Regions Visited (2) 400 Robots Destroyed (31) 155 Value Destroyed (510) 510 Prototype IDs (2) 40 Alien Tech Used (0) 0 Bonus (0) 0 TOTAL SCORE: 1105 Bonus ------- None Cogmind --------- Core Integrity 0/250 Matter 281/300 Energy 63/125 System Corruption 0% Temperature Cool (6) Movement Treading (240) Ox1 Location -10/Subcaves Parts ------- > --- POWER (1) -------- Light Ion Engine > --- PROPULSION (2) --- Light Treads > --- UTILITY (2) ------ Large Storage Unit Seismic Detector > --- WEAPON (2) ------- Subdweller Laser Subdweller Machine Gun > --- INVENTORY (15) --- Ion Engine Light Ion Engine Wheel Compact Wheel Heat Sink High-capacity Matter Pod (200) High-capacity Matter Pod (200) High-capacity Matter Pod (142) EM Pulse Gun Heavy Riot Gun Small Laser Subdweller Laser Light Assault Rifle Grenade Launcher Grenade Launcher Peak State ------------ > --- POWER ------------ Light Ion Engine > --- PROPULSION ------- Light Treads Light Treads > --- UTILITY ---------- Large Storage Unit Seismic Detector > --- WEAPON ----------- Heavy Riot Gun Subdweller Laser > --- INVENTORY -------- Ion Engine Light Ion Engine Wheel Compact Wheel Heat Sink High-capacity Matter Pod High-capacity Matter Pod High-capacity Matter Pod EM Pulse Gun Small Laser Small Laser Light Assault Rifle Light Assault Rifle Grenade Launcher Grenade Launcher [Rating: 12] Favorites ----------- Power Light Ion Engine Engine Light Ion Engine Propulsion Light Treads Treads Light Treads Wheel Compact Wheel Utility Seismic Detector Device Seismic Detector Storage Large Storage Unit Weapon Small Laser Energy Gun Small Laser Ballistic Gun Assault Rifle Launcher Grenade Launcher Build | -11 -10 -10 ------- Run | Yrd Mat Sub Slots Evolved . | . . . Power . | . . . Propulsion . | . . . Utility . | . . . Weapon . | . . . Parts Attached 22 | 6 12 4 Power 3 | 1 2 . Engine 3 | 1 2 . Core . | . . . Reactor . | . . . Propulsion 5 | 2 3 . Treads 3 | 2 1 . Leg . | . . . Wheel 2 | . 2 . Hover . | . . . Flight . | . . . Utility 5 | 1 4 . Device 2 | . 2 . Storage 3 | 1 2 . Processor . | . . . Hackware . | . . . Protection . | . . . Artifact . | . . . Weapon 9 | 2 3 4 Energy Gun 4 | 1 1 2 Energy Cannon . | . . . Ballistic Gun 3 | 1 1 1 Ballistic Cannon . | . . . Launcher 2 | . 1 1 Special Weapon . | . . . Impact Weapon . | . . . Slashing Weapon . | . . . Piercing Weapon . | . . . Special Melee Weapon . | . . . Unidentified Prototypes . | . . . Parts Lost 3 | . 2 1 Power 1 | . 1 . Propulsion 2 | . 1 1 Utility . | . . . Weapon . | . . . Highest Loss Streak 1 | . 1 1 To Critical Strikes . | . . . Average Backups 11 | 3 11 15 Power 2 | 1 2 2 Propulsion 2 | 1 2 2 Utility 1 | . 1 4 Weapon 5 | . 5 7 Tool/Special . | . . . Unused Backups 19 | . 5 14 Power 3 | . 1 2 Propulsion 4 | . 2 2 Utility 6 | . 2 4 Weapon 6 | . . 6 Tool/Special . | . . . Average Slot Usage (%) 98 | . 98 99 Engine 13 | . 13 14 Treads 26 | . 26 27 Wheel 1 | . 1 . Device 13 | . 13 14 Storage 14 | . 14 14 Energy Gun 15 | . 15 16 Ballistic Gun 11 | . 12 11 Peak Build Rating 12 | 6 8 12 Average Rating 7 | 5 7 8 On Entrance 4 | . 6 8 Avg Prop Armor Cover (%) 13 | . 13 . Naked Turns . | . . . Heaviest Build 32 | 11 29 32 Greatest Support 40 | 40 40 40 Greatest Overweight (x) 2 | 2 2 . Average Overweight (x) . | . . . Largest Inventory Capacity 15 | 8 15 15 Average Capacity 13 | 7 13 15 Most Carried 15 | 6 15 15 Average Carried 11 | 3 11 15 Final Capacity 15 | 8 15 15 Final Carried 15 | 6 15 15 Class Distribution -------------------- 66% | Mutant 33% | Scavenger-Mutant Dominant Class ---------------- Mutant | -10/Materials Scavenger-Mutant | -10/Subcaves Resources | -11 -10 -10 ----------- Run | Yrd Mat Sub Matter Collected 1217 | 215 911 91 Remotely . | . . . Salvage Created 918 | 25 791 102 Parts 64 | 5 50 9 Haulers Intercepted 1 | . 1 . Recyclers Shooed 2 | . 2 . Parts Field Recycled . | . . . Retrieved Matter . | . . . Parts Self-Destructed 4 | . . 4 Prevented . | . . . Parts Restored . | . . . Kills | -11 -10 -10 ------- Run | Yrd Mat Sub Combat Hostiles Destroyed 19 | . 13 6 Guns 9 | . 7 2 AOE 10 | . 6 4 Classes Destroyed 9 | 1 7 1 Worker 2 | . 2 . Builder 1 | . 1 . Tunneler 2 | 1 1 . Hauler 1 | . 1 . Recycler 4 | . 4 . Watcher 2 | . 2 . Swarmer 10 | . 6 4 Grunt 7 | . 7 . Subdweller 2 | . . 2 Best Kill Streak 4 | 1 4 4 Combat Bots Only 4 | . 3 4 Max Kills in Single Turn 4 | 1 4 2 Gunslinging . | . . . Exploded 3 | . 3 2 Melee . | . . . Uniques/NPCs Destroyed . | . . . Combat | -11 -10 -10 -------- Run | Yrd Mat Sub Hostile Shots Fired 105 | . 68 37 Missed 26 | . 16 10 Hits 79 | . 52 27 Projectile 79 | . 52 27 Critical Strikes 1 | . 1 . Damage Taken 1043 | . 594 449 Core 251 | . 116 135 Absorbed by Shields . | . . . Regen/Repaired (Parts) 22 | . 22 . Core Remaining (%) 100 | 100 . . Volleys Fired 88 | 1 71 16 Largest 2 | 2 2 2 Hottest 120 | 60 80 120 Shots Fired 164 | 2 136 26 Gun 155 | 2 130 23 Cannon . | . . . Launcher 9 | . 6 3 Special . | . . . Kinetic 52 | 1 44 7 Thermal 98 | 1 86 11 Explosive 9 | . 6 3 Electromagnetic 5 | . . 5 Robot Hit Streak 16 | 2 8 16 Robot Miss Streak 4 | . 4 2 Penetration Max . | . . . Secondary Targets . | . . . Shots Hit Robots 102 | 2 79 21 Core Hits 47 | 1 36 10 Critical Kills . | . . . Critical Parts Destroyed . | . . . Critical Strikes . | . . . Melee Attacks . | . . . Impact . | . . . Slashing . | . . . Piercing . | . . . Sneak Attacks . | . . . Combat Hostiles . | . . . Follow-up Attacks . | . . . Damage Inflicted 2044 | 24 1280 740 Guns 1398 | 24 920 454 Cannons . | . . . Explosions 646 | . 360 286 Melee . | . . . Ramming . | . . . Kinetic 468 | 14 305 149 Thermal 838 | 10 615 213 Explosive 646 | . 360 286 Electromagnetic 92 | . . 92 Impact . | . . . Slashing . | . . . Piercing . | . . . Highest Corruption . | . . . Average Corruption . | . . . Corruption Purged . | . . . Corruption Blocked . | . . . Overload Shots . | . . . Overflow Damage 86 | . 44 42 Projectiles . | . . . Explosions 86 | . 44 42 Melee . | . . . Knockbacks . | . . . Impact . | . . . Kinetic . | . . . Secondary . | . . . Self-Inflicted Damage 25 | . 13 12 Shots 2 | . 1 1 Rammed . | . . . Targets Rammed . | . . . Kicked . | . . . Crushed . | . . . Highest Temperature 138 | . 138 12 Average Temperature 37 | . 38 9 Received Heat Transfer 345 | . 285 60 Siege Activations . | . . . Martial Activations . | . . . Shielding Activations . | . . . Robots Disrupted . | . . . Combat Hostiles . | . . . Robots Corrupted . | . . . Combat Hostiles . | . . . Parts Fried 1 | . . 1 Impact Corruptions . | . . . Robots Melted . | . . . Combat Hostiles . | . . . Parts Melted . | . . . Heat Transferred 1650 | 25 1375 250 Parts Sabotaged . | . . . Parts Stolen . | . . . Parts Stripped . | . . . Power Chain Reactions . | . . . Alert | -11 -10 -10 ------- Run | Yrd Mat Sub Maximum Alert Level . | . . . Low Security (%) 100 | 100 100 . Level 1 . | . . . Level 2 . | . . . Level 3 . | . . . Level 4 . | . . . Level 5 . | . . . High Security . | . . . Max Security . | . . . Peak Influence 136 | 5 136 . Initial . | . . . Average 65 | . 70 . Influence Increases 574 | 5 459 110 Destroy 0b10 Robot/C 340 | . 260 80 Destroy 0b10 Robot/NC 60 | 5 55 . Destroy Leader 56 | . 56 . Successful Hack 23 | . 23 . Destroy Structure 35 | . 35 . Lose Combat Pursuer 60 | . 30 30 Influence Decreases 573 | 5 417 151 Entered New Map 21 | . . 21 Time Decay 522 | 5 397 120 Lost Part 30 | . 20 10 Squads Dispatched 3 | . 3 . Investigation 1 | . 1 . Extermination . | . . . Reinforcement 2 | . 2 . Assault . | . . . Garrison . | . . . Intercept . | . . . Searches Triggered . | . . . Construction Impeded . | . . . Haulers Reinforced . | . . . Active Scanning Responses . | . . . Cargo Convoy Interrupts . | . . . Stealth | -11 -10 -10 --------- Run | Yrd Mat Sub Distress Signals 1 | . 1 . Communications Jammed . | . . . Distress Signals . | . . . Times Spotted 38 | . 30 8 Peak Tracking Total 6 | . 5 6 Tactical Retreats 2 | . 1 1 Traps | -11 -10 -10 ------- Run | Yrd Mat Sub Traps Triggered 2 | . 1 1 Indirectly . | . . . Trap Hack Attempts . | . . . Triggered . | . . . Disarmed . | . . . Reprogrammed . | . . . Reused . | . . . Traps Extracted . | . . . Installed . | . . . Triggered . | . . . Machines | -11 -10 -10 ---------- Run | Yrd Mat Sub Machines Disabled . | . . . Max in Single Turn . | . . . Machines Repaired . | . . . Machines Dismantled . | . . . Machines Sabotaged . | . . . Overloaded Fab Kills . | . . . Hacking | -11 -10 -10 --------- Run | Yrd Mat Sub Machines Accessed 7 | . 7 . Terminals 5 | . 5 . Fabricators . | . . . Repair Stations 1 | . 1 . Recycling Units 1 | . 1 . Scanalyzers . | . . . Garrison Access . | . . . Total Hacks 15 | . 15 . Successful 12 | . 12 . Failed 3 | . 3 . Catastrophic . | . . . Database Lockouts . | . . . Manual 11 | . 11 . Terminals 12 | . 12 . Fabricators . | . . . Repair Stations 2 | . 2 . Recycling Units 1 | . 1 . Scanalyzers . | . . . Garrison Access . | . . . Terminal Hacks 2 | . 2 . Prototype ID Bank 1 | . 1 . Locate Traps 1 | . 1 . Fabricator Hacks . | . . . Repair Station Hacks 2 | . 2 . Scan Component 1 | . 1 . Repair 1 | . 1 . Recycling Unit Hacks 1 | . 1 . Retrieve Components 1 | . 1 . Scanalyzer . | . . . Garrison Access Hacks . | . . . Unauthorized Hacks 7 | . 7 . Terminals 7 | . 7 . Botnet 2 | . 2 . Skim 5 | . 5 . Fabricators . | . . . Repair Stations . | . . . Recycling Units . | . . . Scanalyzers . | . . . Garrison Access . | . . . Data Cores Recovered . | . . . Used . | . . . Hacking Detections 5 | . 5 . Full Trace Events . | . . . Feedback Events . | . . . Feedback Blocked . | . . . Robot Schematics Acquired . | . . . Robots Built . | . . . Authchips . | . . . Time . | . . . Total Robot Build Rating . | . . . Part Schematics Acquired . | . . . Parts Built . | . . . Authchips . | . . . Time . | . . . Total Part Build Rating . | . . . Part Studies Acquired . | . . . Parts Repaired 1 | . 1 . Time 26 | . 26 . Parts Recycled . | . . . Recycled Matter . | . . . Retrieved Matter . | . . . Retrieved Components 10 | . 10 . Parts Scanalyzed . | . . . Part Schematics Acquired . | . . . Parts Damaged . | . . . Bothacking | -11 -10 -10 ------------ Run | Yrd Mat Sub Used RIF Installer . | . . . Robots Hacked . | . . . Non-combat . | . . . Combat . | . . . Robot Hacks Applied . | . . . Relay Couplers Released . | . . . Fabnet Peak Effective % . | . . . Robots Rewired . | . . . Allies Hacked . | . . . Hacks Repelled . | . . . Allies | -11 -10 -10 -------- Run | Yrd Mat Sub Total Allies . | . . . Largest Group . | . . . Highest-Rated Group . | . . . Highest-Rated Ally . | . . . Total Orders . | . . . Ally Attacks . | . . . Total Damage . | . . . Kills . | . . . Allies Corrupted . | . . . Allies Melted . | . . . Intel | -11 -10 -10 ------- Run | Yrd Mat Sub Active Infowar (turns) 1639 | . 1396 243 Seismic 1639 | . 1396 243 Robot Analysis Total . | . . . Derelict Logs Recovered . | . . . Drone Launches . | . . . Drone Recoveries . | . . . Exploration | -11 -10 -10 ------------- Run | Yrd Mat Sub Turns Passed 1810 | 98 1469 243 Spaces Moved 878 | 51 724 103 Core 7 | 7 . . Treads 786 | 44 639 103 Legs . | . . . Wheels 85 | . 85 . Hover . | . . . Flight . | . . . Fastest Speed 50 | 50 110 160 Average Speed 155 | 150 154 160 Slowest Speed 160 | 160 160 160 Overloaded Moves . | . . . Propulsion Burnouts . | . . . Robots Hopped . | . . . Potential Cave-ins . | . . . Cave-ins Triggered . | . . . Exploration Rate (%) 36 | 4 97 8 Regions Visited 2 Branch Regions 1 Pre-discovered Areas . | . . . Known Exits Taken 1 | . 1 . Unknown Exits Taken 1 | 1 . . Scrap Searched 2 | . . 2 Spaces Dug 16 | . 11 5 Terrain Destroyed 45 | . 32 13 Melee . | . . . Projectile . | . . . AOE 45 | . 32 13 Terrain Rammed . | . . . Walls Destroyed . | . . . Machines Disabled . | . . . Actions | -11 -10 -10 --------- Run | Yrd Mat Sub Total 1168 | 67 945 156 Wait 125 | 4 95 26 Move 876 | 50 723 103 Hop . | . . . Pick Up 29 | 6 21 2 Fast Attach 11 | 6 3 2 Attach 3 | . 3 . Detach . | . . . Swap 15 | . 12 3 Drop 21 | . 17 4 Fire 88 | 1 71 16 Melee . | . . . Ram . | . . . Kick . | . . . Crush . | . . . Escape Stasis . | . . . Rewire . | . . . Trap . | . . . Miscellaneous . | . . . Route ------- -11/Scrapyard -10/Materials (discovered 6 exits: *Mat x3 / *Min x2 / *Sub) -10/Subcaves History --------- Turn | Location | Event 21 | -11/Scrapyard | Discovered new exit (range 16) 99 | -11/Scrapyard | Entered Materials 312 | -10/Materials | Build established: Mutant 338 | -10/Materials | Discovered new exit (range 3) 436 | -10/Materials | Discovered new exit (range 14) 593 | -10/Materials | Discovered new exit (range 10) 647 | -10/Materials | Repaired Grenade Launcher 939 | -10/Materials | Identified exit to Materials 939 | -10/Materials | Identified exit to Subcaves 939 | -10/Materials | Identified exit to Mines 1023 | -10/Materials | Learned Storage stockpile data 1047 | -10/Materials | Learned location of 2 exits from Mines 1084 | -10/Materials | Loaded intel: 1 recycling unit location 1116 | -10/Materials | Learned 2 Materials zone layouts 1159 | -10/Materials | Learned Storage stockpile data 1367 | -10/Materials | Discovered exit to Materials (range 14) 1453 | -10/Materials | Build established: Scavenger-Mutant 1568 | -10/Materials | Entered Subcaves 1569 | -10/Subcaves | Approached by a straggling Scientist 1617 | -10/Subcaves | Core integrity fell below 50% 1770 | -10/Subcaves | Visited 4L-MR0's lab 1810 | -10/Subcaves | Core integrity fell below 20% 1811 | -10/Subcaves | Destroyed by MZ-2X3(R) with Subdweller Laser Last Messages --------------- 01747_ Dropped Lgt. Assault Rifle. 01747_ Acquired Hvy. Riot Gun. 01750_ Dropped Sml. Laser. 01751_ Acquired Sub. Laser. 01754_ Searching scrap... 01754_ Found Sub. Laser. 01754_ Found Sub. Machine Gun. 01754_ Found 47 Matter. 01755_ Acquired 47 matter. 01755_ Subatomizers dissect the Lgt. Assault Rifle. 01757_ Dropped Lgt. Assault Rifle. 01757_ Acquired Sub. Machine Gun. 01761_ Dropped Sml. Laser. 01761_ Acquired Sub. Laser. 16-9F9(c): "I think it's somewhere east of here" 01787_ Sub. Power Source fried. 01787_ WX-1LZ(R) destroyed. 01800_ Lgt. Treads destroyed. 01807_ QG-AQB(R) affixes Scrap Shield Fragment to Scrap Shield. 01810_ QG-AQB(R) destroyed. Map ----- +----------------------------------------------------+ | ?????????????????????????????????????????????????? | | ?????????????????????????????????????????????????? | | ?????????????????????????????????????????????????? | | ?????????????????????????????????????????????????? | | ?????????????????????????????????????????????????? | | ?????????????????????????????????????????????????? | | ??????????????????????????####???????????????????? | | ??????????????????????????? ???????????????????? | | ????????????????????????????# ?###??????????????? | | ????????????????????????????? ## ##???????????" | | ?????????????????????????????? #??????????"" | | ???????????????????????????????# #????????? & | | ??????????????????????????##???# ##?###??? & | | ?????????????????????##??? "#??## ### #??# " | | ????????????????????? !???# "??## #?# ## | | ?????????????????????""##?#" ??# ## | | ?????????????????????#/ ## ###" #???? | | ?????????????????????" #?# #" # ##??? | | ????????????????????#"" #?# # # # ##?? | | ?????????????????????"X #?# # #### #?? | | ?????????????????????"" #?# #" ## #?? | | ?????????????????????? #### ## #?? | | ???????????????????????& ##[[ "# # ##? | | ???????????????????????#+##[ <## ### ## | | ???????????????????????#%##[ <## ### # | | ???????????????????????#R@[& <### #### | | ???????????????????????#<%<<<### ##???# | | ???????????????????????#######?### ##### | | ?????????????????????????????????# ## | | ?????????????????????????????????## # # | | ?????????????????????????????????# ## # | | ?????????????????????????????????# #### # | | ?????????????????????????????????## #?## # | | ????????????????????????????????## ##?## | | ????????????????????????????????# #### | | ????????????????????????????????# ## ## | | ????????????????????????????????# ## | | ???????????????????????????????## # | | ??????????????????????????????## ### | | ??????????????????????????????# ### ##?#### | | ??????????????????????????????## #?## #?????? | | ???????????????????????????????# #??# ##?????? | | ???????????????????????????????## #??######??????? | | ????????????????????????????????###??????????????? | | ?????????????????????????????????????????????????? | | ?????????????????????????????????????????????????? | | ?????????????????????????????????????????????????? | | ?????????????????????????????????????????????????? | | ?????????????????????????????????????????????????? | | ?????????????????????????????????????????????????? | +----------------------------------------------------+ Best States ------------- Heat Dissipation 25 Energy Generation 10 Energy Capacity 125 Matter Stores 300 Matter Capacity 300 Sight Range 16 Terrain Scan Density 10 Evasion (%) 40 Recoil Reduction 2 Item Schematics ----------------- None Robot Schematics ------------------ None Fabricated ------------ Nothing Repaired ---------- Grenade Launcher | 63% | -10/Materials Studied --------- None Alien Tech Used ----------------- None Achievements -------------- None Challenges ------------ None Game ------ Seed DoorSpikedThruster Manual? 0 Play Time 00:10:04 Cumulative 1598.1 hours Start 2026.02.12 @ 13:39:12 End 2026.02.12 @ 13:47:54 Sessions 1 Manual Loads 0 Difficulty Rogue Special Mode None Game No. 1141 Rogue 1101 Adventurer 40 Explorer 0 Win Type - Total 203 Types 88/11/74/2/2/4/16/2/1/3 Lore% 97 Gallery% 95 Achievement% 80 Wizard Run 0 Options --------- Layout 0 ASCII 0 Keyboard 0 Movement Numpad Keybinds 0 Fullscreen 0 Font 20/Terminus Map View 76x50 Zoom Use 0% Tactical HUD 1 Map Filters NONE Filters NONE Steam 1 RUN: 9d4252c9-4603-403f-8e34-66e20d835e70